bitfinex/quotes_ETHUSD_20220118
["timestamp","ask_amount","ask_price","bid_price","bid_amount"]
[1642520647580,0.42893685,3129.2,3128.7,0.00170527]
[1642520647980,2.38676806,3128.9,3128.7,0.00170527]
[1642520648183,0.3,3128.9,3128.3,1.38318173]
[1642520648379,0.3,3128.9,3128.4,0.00341054]
[1642520648582,0.42893685,3129.2,3128.4,0.00341054]
[1642520648779,0.12893685,3129.2,3128.4,0.00341054]
[1642520649179,0.12893685,3129.2,3128.2,7.42]
[1642520649180,0.92818685,3129.2,3128.3,0.00397897]
[1642520649379,0.12893685,3129.2,3128.3,0.00397897]
[1642520649581,0.42893685,3129.2,3128.3,0.00397897]
[1642520649782,0.42893685,3129.2,3128.7,1.15816093]
[1642520650183,0.42893685,3129.2,3128.8,0.00113685]
[1642520650184,0.30113685,3129.2,3128.8,0.00113685]
[1642520650431,0.30113685,3129.2,3128.8,0.80011685]
[1642520650625,0.30113685,3129.2,3128.8,2.93760468]
[1642520651428,0.00113685,3129.2,3128.8,2.93760468]
[1642520651628,0.00113685,3129.2,3128.9,0.4278]
[1642520651827,0.00113685,3129.2,3129.0,1.59754]
[1642520652026,0.00113685,3129.2,3129.1,6.1778]
[1642520652226,0.00113685,3129.2,3129.1,9.25770129]
[1642520652426,0.00113685,3129.2,3129.1,9.55770129]
[1642520653029,0.00113685,3129.2,3129.1,9.42990129]
[1642520655883,0.00113685,3129.2,3129.1,6.35]
[1642520658725,0.00113685,3129.2,3129.1,10.37823606]
[1642520658924,0.00113685,3129.2,3129.1,10.07848625]
[1642520659125,1.70877188,3130.5,3129.3,3.34897592]
[1642520659323,1.58097188,3130.5,3130.1,3.89529259]
[1642520659524,1.70867188,3130.5,3130.1,3.34993308]
[1642520659727,15.40128578,3131.9,3130.1,3.34993308]
[1642520659728,1.58097188,3131.0,3130.2,2.90056576]
[1642520659926,1.58097188,3131.0,3130.6,1.50841995]
[1642520660125,0.1277,3130.9,3130.7,2.8981162]
[1642520660327,1.54267188,3131.0,3130.6,3.10540995]
[1642520660524,1.54267188,3131.0,3130.8,6.05]
[1642520660724,1.54267188,3131.0,3130.8,7.0897]
[1642520661124,2.37145782,3131.3,3130.9,8.63253285]
[1642520661329,2.37145782,3131.3,3130.9,10.73084285]
[1642520661527,0.1277,3131.9,3131.0,8.64647]
[1642520661528,4.0813501,3131.8,3131.0,8.64647]
[1642520661777,4.0813501,3131.8,3131.7,1.26176493]
[1642520661975,4.0813501,3131.8,3131.7,1.96846493]
[1642520662176,4.08476064,3131.8,3131.7,1.96846493]
[1642520662397,4.08476064,3131.8,3131.7,2.76665493]
[1642520662575,4.38476064,3131.8,3131.7,1.96846493]
[1642520662774,4.08476064,3131.8,3131.7,1.96846493]
[1642520663377,0.00341054,3131.8,3131.7,1.96846493]
[1642520663777,0.41120197,3131.5,3131.4,1.59636]
[1642520663981,0.71120197,3131.5,3131.4,1.59636]
[1642520664178,0.71290724,3131.5,3131.1,0.1277]
[1642520664676,0.00113684,3131.4,3131.1,0.1277]
[1642520664876,0.00113684,3131.4,3131.1,1.72449]
[1642520665277,0.41120197,3131.5,3131.2,2.8983018]
[1642520665556,0.36120197,3131.5,3131.3,1.0]
[1642520665754,0.36120197,3131.5,3131.4,7.28313912]
[1642520666051,3.16194376,3132.2,3132.1,1.15087066]
[1642520666456,3.28964376,3132.2,3132.1,1.15087066]
[1642520666756,3.28964376,3132.2,3131.8,0.2682]
[1642520666952,0.1277,3132.2,3131.9,0.3]
[1642520667153,0.00397897,3132.1,3131.9,0.3]
[1642520667353,0.00397897,3132.1,3132.0,0.79812]
[1642520667555,0.1277,3132.6,3132.0,0.79812]
[1642520667954,0.00625266,3132.5,3132.0,0.79812]
[1642520668153,0.1277,3132.4,3132.0,0.79812]
[1642520668353,0.13338424,3132.4,3132.0,0.79812]
[1642520668552,0.00511581,3132.3,3132.0,0.79812]
[1642520668753,0.1277,3132.2,3132.0,0.79812]
[1642520669052,0.00397897,3132.1,3132.0,0.79812]
[1642520670384,0.00397897,3132.1,3132.0,6.29107525]
[1642520670685,0.00397897,3132.1,3132.0,0.79812]
[1642520671685,0.00397897,3132.1,3132.0,9.75270316]
[1642520671894,3.16194376,3132.7,3132.2,6.05]
[1642520672091,3.12734376,3132.7,3132.5,0.01211982]
[1642520672287,3.12734376,3132.7,3132.6,6.97536]
[1642520672487,0.034686,3133.3,3132.7,6.05]
[1642520672688,4.0813501,3133.4,3132.8,3.73885999]
[1642520672950,4.0813501,3133.4,3133.0,1.95372299]
[1642520673141,4.0813501,3133.4,3133.0,2.84632299]
[1642520673340,4.0813501,3133.4,3133.2,6.1]
[1642520673542,11.40006235,3134.2,3133.2,6.1]
[1642520673543,4.01956652,3134.0,3133.3,3.89486911]
[1642520673742,4.01956652,3134.0,3133.4,0.1275]
[1642520673942,4.01956652,3134.0,3133.5,0.46]
[1642520674141,4.01956652,3134.0,3133.6,3.21316632]
[1642520674341,4.01956652,3134.0,3133.6,4.80836632]
[1642520674543,4.01956652,3134.0,3133.6,5.60597632]
[1642520674740,4.2088501,3134.4,3133.9,4.33574065]
[1642520674941,4.2088501,3134.4,3134.0,2.88733262]
[1642520675140,0.01250531,3134.3,3133.9,2.66724065]
[1642520675341,0.01250531,3134.3,3134.0,2.89248786]
[1642520675541,0.01193689,3134.2,3134.0,1.5952]
[1642520675940,1.71388609,3134.5,3133.9,2.0323]
[1642520676144,1.71388609,3134.5,3133.9,1.9048]
[1642520676339,0.00170527,3134.4,3133.9,1.9048]
[1642520676540,0.1275,3134.3,3133.9,1.9048]
[1642520676776,0.1275,3134.3,3133.9,0.3096]
[1642520676777,0.12863684,3134.3,3133.9,0.3096]
[1642520676977,0.12863684,3134.3,3134.0,0.79766]
[1642520677180,0.12863684,3134.3,3134.1,1.09600101]
[1642520677181,0.00113684,3134.3,3134.1,1.09600101]
[1642520677578,0.00113684,3134.3,3133.6,3.13771958]
[1642520677579,0.52599033,3133.7,3133.6,3.13771958]
[1642520677778,0.00113684,3134.3,3133.7,6.1]
[1642520677977,0.00113684,3134.3,3133.8,2.97083005]
[1642520678177,0.00113684,3134.3,3133.9,0.79759]
[1642520678376,0.00113684,3134.3,3134.0,2.87577576]
[1642520678576,0.00113684,3134.3,3134.1,2.10942741]
[1642520678779,0.00113684,3134.3,3134.2,9.01034459]
[1642520679181,4.4039,3135.1,3134.3,6.1]
[1642520679182,2.40308308,3134.8,3134.3,6.1]
[1642520679381,2.40308308,3134.8,3134.4,3.45489074]
[1642520679682,2.40308308,3134.8,3134.5,6.1]
[1642520679880,2.40308308,3134.8,3134.7,6.25833559]
[1642520680080,2.40308308,3134.8,3134.7,6.71833559]
[1642520680529,2.40308308,3134.8,3134.7,7.51567559]
[1642520680725,0.35496068,3134.8,3134.7,8.51567559]
[1642520680925,8.2295501,3135.6,3134.7,8.51567559]
[1642520680926,2.40276931,3135.3,3134.8,24.75]
[1642520681127,2.40276931,3135.3,3135.0,1.66685439]
[1642520681326,3.20369242,3135.5,3135.2,6.1]
[1642520681327,3.20937665,3135.5,3135.2,6.1]
[1642520681531,3.20937665,3135.5,3135.3,3.83292008]
[1642520681828,3.20369242,3135.5,3135.4,2.92963669]
[1642520682330,0.00568423,3135.5,3135.4,1.38875038]
[1642520682526,0.00568423,3135.5,3135.4,4.29235619]
[1642520684183,1.83608204,3136.5,3135.4,4.29235619]
[1642520684379,0.1275,3136.5,3135.6,0.79719]
[1642520684579,0.00511582,3136.4,3135.7,3.81226306]
[1642520684781,0.1275,3136.3,3135.7,0.79718]
[1642520684986,0.13204739,3136.3,3135.8,0.5875]
[1642520685180,0.00397897,3136.2,3135.8,2.97836]
[1642520685580,4.308,3136.6,3136.4,2.22176608]
[1642520685780,4.308,3136.6,3136.5,1.31373719]
[1642520685781,4.058,3136.6,3136.5,1.31373719]
[1642520685981,0.03687541,3137.1,3136.5,1.31373719]
[1642520685982,0.1275,3137.0,3136.5,1.31373719]
[1642520686381,0.00341054,3136.8,3136.2,2.05387]
[1642520686582,0.00341054,3136.8,3136.2,0.46]
[1642520686788,2.27949352,3136.4,3136.0,1.1668]
[1642520686982,0.1275,3136.3,3135.9,0.00170527]
[1642520687383,0.1275,3136.3,3135.5,1.17940127]
[1642520687586,0.1275,3136.3,3135.6,0.79731]
[1642520687784,0.1275,3136.3,3135.6,0.80072054]
[1642520688051,0.1275,3136.3,3135.7,1.59710212]
[1642520688248,0.1275,3137.0,3136.0,0.01299682]
[1642520688449,0.00568423,3137.2,3136.1,1.96742916]
[1642520688651,0.00397896,3136.9,3136.6,1.83796407]
[1642520688848,0.00511581,3137.1,3136.6,1.45047111]
[1642520689050,0.0073895,3137.5,3136.6,1.45047111]
[1642520689248,0.00454739,3137.0,3136.6,1.45047111]
[1642520689448,0.00682108,3137.4,3136.6,1.45047111]
[1642520689651,0.00397896,3136.9,3136.6,2.24746111]
[1642520689850,0.00625266,3137.3,3136.6,2.24746111]
[1642520690053,0.1275,3137.2,3136.6,2.24746111]
[1642520690254,0.00568423,3137.2,3136.6,2.24746111]
[1642520690453,0.13261581,3137.1,3136.4,1.59397]
[1642520690853,0.00454739,3137.0,3136.4,1.59397]
[1642520691051,0.1275,3136.9,3136.4,1.59397]
[1642520691352,0.13147896,3136.9,3136.4,1.59397]
[1642520691552,0.00397896,3136.9,3136.4,1.59397]
[1642520691783,0.00397896,3136.9,3136.6,1.19765701]
[1642520691985,0.00397896,3136.9,3136.6,1.49765701]
[1642520692184,0.00397896,3136.9,3136.6,2.29463701]
[1642520692382,0.00397896,3136.9,3136.6,3.29463701]
[1642520692582,0.00397896,3136.9,3136.7,0.1275]
[1642520693183,0.00397896,3136.9,3136.8,5.78976789]
[1642520693383,0.00397896,3136.9,3136.8,6.23976789]
[1642520693584,0.00397896,3136.9,3136.8,2.33976789]
[1642520693786,0.00397896,3136.9,3136.6,3.52663701]
[1642520693988,0.00397896,3136.9,3136.6,0.3]
[1642520694193,0.00397896,3136.9,3136.4,1.59397]
[1642520694385,0.00397896,3136.9,3136.3,3.721]
[1642520694386,2.7507587,3136.4,3136.3,3.721]
[1642520694585,2.7507587,3136.4,3136.1,1.3057]
[1642520694791,6.77891729,3136.2,3136.1,0.1275]
[1642520694990,5.1275,3136.2,3136.1,0.1275]
[1642520695533,4.6156,3136.2,3136.1,0.1275]
[1642520696527,4.4881,3136.2,3136.1,0.1275]
[1642520697328,7.9881,3136.2,3136.1,0.1275]
[1642520697728,7.9881,3136.2,3135.8,0.0022737]
[1642520697729,9.95258996,3136.2,3135.8,0.0022737]
[1642520697931,0.1275,3136.1,3135.8,0.0022737]
[1642520698130,0.1275,3136.1,3135.7,0.00284212]
[1642520698528,0.1275,3136.1,3135.4,0.00454739]
[1642520698729,0.1275,3136.1,3135.6,1.29847756]
[1642520699029,0.1275,3136.1,3135.7,0.00284212]
[1642520700694,0.08256237,3136.0,3135.7,0.00284212]
[1642520700900,2.04601119,3136.1,3135.7,0.00284212]
[1642520701096,2.04601119,3136.1,3135.4,0.00454739]
[1642520701300,0.09366398,3136.0,3135.4,0.00454739]
[1642520701496,0.1275,3135.9,3135.4,0.00454739]
[1642520701698,0.1275,3136.0,3135.2,0.00568424]
[1642520701899,0.5105,3136.0,3135.5,2.24991367]
[1642520702098,0.1275,3136.0,3135.5,1.45249367]
[1642520702296,4.1881,3136.2,3135.6,0.00341054]
[1642520703235,4.4881,3136.2,3136.1,1.25905601]
[1642520703630,0.03724381,3136.3,3136.1,1.25905601]
[1642520703830,2.75189555,3136.4,3136.1,2.21205601]
[1642520704029,2.75189555,3136.4,3136.2,0.1275]
[1642520704628,2.75189555,3136.4,3136.3,2.14661587]
[1642520705331,2.75189555,3136.4,3136.3,4.94661587]
[1642520706233,2.4210666,3137.5,3136.5,0.79698]
[1642520706430,4.2578,3137.4,3136.6,0.1275]
[1642520706677,4.2578,3137.4,3136.6,7.6937]
[1642520706882,0.00284212,3137.3,3136.7,0.1275]
[1642520707079,0.00284212,3137.3,3136.7,1.1275]
[1642520707279,0.00227369,3137.2,3136.8,1.3542553]
[1642520707490,0.00227369,3137.2,3137.0,1.59344]
[1642520707679,0.00170527,3137.1,3137.0,1.59344]
[1642520707880,0.1275,3138.1,3137.1,6.1]
[1642520708081,4.0189,3138.1,3137.2,1.0]
[1642520708281,4.0189,3138.1,3137.4,0.01222841]
[1642520708483,2.41068607,3138.6,3137.5,6.2274]
[1642520708679,2.41068607,3138.6,3137.5,7.0214]
[1642520708878,2.41068607,3138.6,3138.5,1.52084051]
[1642520709080,2.41068607,3138.6,3137.7,1.72049]
[1642520709281,0.1274,3138.5,3137.7,1.59309]
[1642520709481,0.1274,3138.5,3137.6,2.3897558]
[1642520709681,0.0073895,3138.4,3137.3,0.13944291]
[1642520709880,0.0073895,3138.4,3137.6,1.59339]
[1642520710083,0.0128552,3138.2,3137.1,0.1274]
[1642520710281,0.22574052,3138.1,3137.1,0.1274]
[1642520710535,0.383,3138.0,3137.1,0.9243408]
[1642520710734,0.1274,3137.9,3137.1,0.7969408]
[1642520710932,0.13194739,3137.9,3137.1,0.7969408]
[1642520711134,0.00397896,3137.8,3137.1,0.7969408]
[1642520711332,0.00397896,3137.8,3137.3,0.79685]
[1642520711532,0.00341054,3137.7,3137.4,1.5934863]
[1642520711734,0.00341054,3137.7,3137.6,1.39281723]
[1642520711932,0.1274,3138.2,3137.6,1.39281723]
[1642520712133,0.1274,3138.2,3137.6,2.48631243]
[1642520712333,0.00511581,3138.0,3137.6,2.48631243]
[1642520712535,0.00511581,3138.0,3137.6,1.0934952]
[1642520712833,0.00454739,3137.9,3137.6,1.8902428]
[1642520713235,0.00397896,3137.8,3137.6,1.8902428]
[1642520713435,0.00397896,3137.8,3137.6,0.41155169]
[1642520713637,0.00341054,3137.7,3137.6,0.41155169]
[1642520714037,0.00341054,3137.7,3137.6,0.3]
[1642520714683,0.00341054,3137.7,3137.3,1.59352]
[1642520714895,0.1274,3137.6,3137.2,0.1274]
[1642520715082,0.09867552,3137.5,3137.2,0.1274]
[1642520715283,0.09928175,3137.3,3136.2,1.0]
[1642520715486,0.1275,3137.2,3136.4,0.79711]
[1642520715682,0.08473178,3137.1,3136.4,0.79711]
[1642520715883,0.1275,3137.3,3136.5,0.00341054]
[1642520716083,2.10917724,3137.2,3136.5,0.00341054]
[1642520716288,0.1275,3137.1,3136.5,0.00341054]
[1642520716483,3.7378577,3137.1,3136.2,0.00511581]
[1642520717083,3.7378577,3137.1,3135.8,0.00738951]
[1642520717084,4.1208577,3137.1,3135.8,0.00738951]
[1642520717283,0.87922856,3137.0,3135.8,0.00738951]
[1642520717483,0.5105,3136.9,3135.8,0.00738951]
[1642520717683,0.4605,3136.9,3135.6,3.06535014]
[1642520717934,0.7605,3136.9,3135.7,0.00795793]
[1642520718331,0.79733,3136.8,3135.7,0.00795793]
[1642520718531,1.97581656,3136.2,3135.7,0.00795793]
[1642520718730,0.1275,3136.1,3135.7,0.00795793]
[1642520718934,1.97581656,3136.2,3135.7,0.00795793]
[1642520719129,2.27581656,3136.2,3135.7,0.00795793]
[1642520719331,0.1275,3136.1,3135.7,0.00795793]
[1642520719531,0.1275,3136.1,3135.6,0.00852635]
[1642520719731,1.82997878,3136.1,3135.6,0.00852635]
[1642520720133,2.00402784,3135.3,3135.2,1.28683015]
[1642520720333,1.82997878,3136.1,3135.2,1.28683015]
[1642520720533,1.82997878,3136.1,3135.2,1.2976302]
[1642520720732,1.70247878,3136.1,3135.3,0.01023162]
[1642520720933,1.70247878,3136.0,3135.4,0.79722]
[1642520721134,1.70247878,3136.0,3135.5,3.01216836]
[1642520721335,1.70247878,3136.0,3135.5,5.56722956]
[1642520721536,1.70247878,3136.0,3135.6,0.00852635]
[1642520721781,1.70247878,3136.0,3135.7,1.28083346]
[1642520721981,1.70247878,3136.0,3135.7,2.07803346]
[1642520722180,1.70247878,3136.0,3135.8,0.00738951]
[1642520722582,1.70247878,3136.3,3135.8,0.00738951]
[1642520722983,1.70247878,3136.3,3136.1,1.65401552]
[1642520723184,1.70247878,3136.3,3136.2,7.31941096]
[1642520723387,1.70247878,3136.3,3136.2,7.32452677]
[1642520723586,1.70247878,3136.3,3136.2,8.7803433]
[1642520723983,1.59489036,3136.8,3136.3,6.1]
[1642520724186,1.59489036,3136.8,3136.6,2.05740468]
[1642520724384,1.59489036,3136.8,3136.6,2.85436468]
[1642520724583,1.59489036,3137.0,3136.7,7.10227369]
[1642520724785,1.59489036,3137.0,3136.8,0.1275]
[1642520724983,1.59489036,3137.0,3136.8,0.69600527]
[1642520725183,1.59489036,3137.0,3136.9,4.78252543]
[1642520725628,0.00113685,3137.3,3136.9,4.78252543]
[1642520725929,0.00113685,3137.3,3137.0,0.79681]
[1642520726331,0.00113685,3137.3,3137.0,1.59366]
[1642520726832,0.00113685,3137.3,3137.0,2.3904977]
[1642520727029,1.72385194,3137.2,3136.9,2.97620073]
[1642520727231,1.72385194,3137.2,3136.9,0.00113685]
[1642520727630,1.85135194,3137.2,3136.8,0.00170527]
[1642520727830,3.4462423,3137.2,3136.4,0.00397896]
[1642520728030,3.4462423,3137.2,3136.3,1.13204739]
[1642520728031,3.3187423,3137.2,3136.3,1.13204739]
[1642520728230,3.3187423,3137.2,3136.7,1.48792232]
[1642520728631,3.3187423,3137.2,3136.8,0.00170527]
[1642520728933,1.72239036,3137.1,3136.8,0.00170527]
[1642520730382,1.59489036,3136.9,3136.8,0.00170527]
[1642520730586,1.59489036,3136.9,3136.2,1.5941424]
[1642520730587,1.68768216,3136.6,3136.2,1.5941424]
[1642520730784,1.68768216,3136.6,3135.9,2.3916407]
[1642520730785,2.20752669,3136.3,3135.9,2.3916407]
[1642520730984,0.1275,3136.2,3135.8,7.5475]
[1642520731184,2.20752669,3136.3,3135.8,7.42]
[1642520731384,0.1275,3136.2,3135.9,0.00511581]
[1642520731583,2.07068216,3136.6,3135.9,0.00511581]
[1642520731584,0.1275,3136.5,3135.9,0.00511581]
[1642520731785,0.1275,3136.5,3135.9,0.80239581]
[1642520731987,1.72239036,3136.5,3135.9,0.80239581]
[1642520732183,1.72239036,3136.5,3136.0,0.00454739]
[1642520733030,1.72239036,3136.5,3136.4,1.39615768]
[1642520733232,1.59489036,3136.5,3136.4,1.39615768]
[1642520733430,1.59489036,3136.5,3136.4,1.39843137]
[1642520733830,1.68768216,3136.6,3136.4,1.39843137]
[1642520734230,1.27541611,3136.8,3136.5,0.00170527]
[1642520734432,0.1275,3136.7,3136.5,0.00170527]
[1642520735133,0.1275,3136.8,3136.5,0.00170527]
[1642520736331,0.1275,3136.8,3136.1,0.7972327]
[1642520736532,2.43796794,3136.9,3136.2,0.00341054]
[1642520736980,2.31046794,3136.9,3136.2,0.00341054]
[1642520737184,2.31046794,3136.9,3136.6,1.1869606]
[1642520737980,2.31046794,3136.9,3136.1,0.1275]
[1642520738182,2.31046794,3136.9,3136.0,0.00454739]
[1642520738183,0.1275,3136.8,3136.0,0.00454739]
[1642520738382,0.1275,3136.8,3135.8,9.0144336]
[1642520738383,0.1275,3136.8,3136.2,0.00341054]
[1642520738882,1.67371323,3136.4,3136.2,0.00341054]
[1642520739482,0.03499479,3136.5,3136.2,0.00341054]
[1642520739686,0.1275,3136.9,3136.2,0.00341054]
[1642520739687,0.79734,3136.7,3136.2,0.00341054]
[1642520739883,0.92484,3136.7,3136.2,0.00341054]
[1642520740083,0.383,3136.6,3136.2,0.00341054]
[1642520740285,0.1275,3136.5,3136.2,0.00341054]
[1642520740563,2.27986976,3136.3,3135.7,0.00625266]
[1642520740743,2.27986976,3136.3,3135.4,1.38961822]
[1642520740744,2.34310843,3135.6,3135.4,1.38961822]
[1642520740944,0.0375588,3135.7,3135.2,7.42]
[1642520741145,1.8254,3136.0,3134.9,1.2394]
[1642520741146,0.1275,3135.6,3134.9,1.2394]
[1642520741342,0.683,3135.8,3135.3,0.00852635]
[1642520741542,0.1275,3135.7,3135.3,0.00852635]
[1642520741946,1.79050931,3135.6,3135.3,0.00852635]
[1642520742548,0.1275,3135.5,3135.3,0.00852635]
[1642520742748,0.5105,3135.5,3134.9,0.01080005]
[1642520742950,4.09266692,3135.5,3134.7,0.01193689]
[1642520743146,0.07690931,3135.4,3134.2,0.01477901]
[1642520743347,2.11978673,3135.0,3134.1,0.01534743]
[1642520743548,0.1275,3134.9,3134.2,1.22038512]
[1642520743949,0.1275,3134.9,3134.3,0.01421059]
[1642520744778,0.92532,3134.9,3134.3,0.01421059]
[1642520744984,1.65885642,3134.6,3134.1,0.01534743]
[1642520745183,1.95885642,3134.6,3134.1,0.01534743]
[1642520745381,2.04185642,3134.6,3134.1,0.01534743]
[1642520745580,2.04185642,3134.6,3133.9,1.10913612]
[1642520745779,0.1275,3134.5,3134.0,0.01591586]
[1642520746079,0.683,3134.6,3134.0,0.01591586]
[1642520746281,0.1275,3134.5,3134.0,0.01591586]
[1642520746480,0.1275,3134.5,3133.6,0.01818955]
[1642520746781,1.88266643,3134.2,3133.5,0.01875798]
[1642520746981,2.18266643,3134.2,3133.5,0.01875798]
[1642520747183,0.1275,3134.1,3133.5,0.01875798]
[1642520748137,1.61019476,3134.5,3133.5,3.15620046]
[1642520748331,1.61019476,3134.5,3133.6,1.59552]
[1642520748530,1.91019476,3134.5,3133.6,1.61370955]
[1642520748733,1.61019476,3134.0,3133.8,3.19550868]
[1642520748932,1.61019476,3134.0,3133.7,0.01762113]
[1642520749132,1.61019476,3134.0,3133.9,0.01648428]
[1642520749434,1.61019476,3134.0,3133.6,0.01818955]
[1642520749631,0.3,3134.0,3133.6,0.01818955]
[1642520749831,0.3,3134.0,3133.5,0.01875798]
[1642520750034,0.1275,3134.1,3133.5,0.01875798]
[1642520750532,0.79801,3133.9,3133.5,0.01875798]
[1642520750734,4.45597901,3134.2,3133.6,3.1914154]
[1642520750735,1.89053111,3134.2,3133.6,3.1914154]
[1642520751032,0.1276,3134.1,3133.7,0.01762113]
[1642520751233,0.79797,3133.9,3133.7,0.01762113]
[1642520751434,5.4775,3133.8,3133.7,0.81559793]
[1642520751879,5.4775,3133.8,3133.7,0.01762113]
[1642520751880,7.7021,3133.8,3133.7,0.01762113]
[1642520752080,6.1,3133.7,3133.3,1.596332]
[1642520752380,1.59647,3133.5,3133.3,1.596332]
[1642520752583,0.5105,3133.4,3132.8,0.00511581]
[1642520752779,2.29708185,3133.0,3132.8,0.00511581]
[1642520752980,0.3,3132.8,3132.3,0.00795793]
[1642520753179,0.3,3132.8,3132.5,1.5966974]
[1642520753581,0.72596,3132.8,3132.6,1.16736982]
[1642520753782,10.38022,3134.4,3132.7,2.86844172]
[1642520753783,0.5105,3133.6,3132.7,2.86844172]
[1642520753980,0.383,3134.0,3132.8,0.1275]
[1642520754181,0.383,3134.0,3133.1,0.7980432]
[1642520754182,1.63265453,3133.3,3133.1,0.7980432]
[1642520754382,1.63265453,3133.3,3133.0,1.5960864]
[1642520754580,0.1275,3133.2,3133.0,1.5960864]
[1642520755429,0.79831,3133.1,3132.6,1.5965857]
[1642520756030,0.3,3133.0,3132.6,1.5965857]
[1642520756630,1.72412,3133.1,3132.7,0.7982921]
[1642520756831,0.3,3133.0,3132.7,0.7982921]
[1642520757035,0.3,3133.0,3132.8,0.00511581]
[1642520757235,1.09832,3133.0,3132.8,0.00511581]
[1642520757433,0.79832,3133.0,3132.7,0.00568423]
[1642520757634,1.59662,3133.1,3132.8,0.7982874]
[1642520757837,0.3,3133.0,3132.8,0.7982874]
[1642520758033,0.3,3133.0,3132.9,0.00454739]
[1642520758437,0.79813,3133.3,3133.0,1.94010491]
[1642520758833,1.09813,3133.3,3133.1,0.00341054]
[1642520759036,1.09813,3133.3,3133.1,1.50532527]
[1642520759309,1.09813,3133.3,3133.2,0.00284212]
[1642520760504,1.09813,3133.3,3133.1,0.00341054]
[1642520760903,6.1,3133.1,3131.5,4.3622617]
[1642520761107,2.32679618,3132.5,3131.6,2.99324038]
[1642520761302,5.933,3132.4,3131.6,2.99324038]
[1642520761604,5.933,3132.4,3131.7,0.00397897]
[1642520761605,0.07691148,3132.3,3131.7,0.00397897]
[1642520762002,0.79848,3132.3,3131.7,1.5969666]
[1642520762400,0.79848,3132.3,3131.8,0.00341054]
[1642520762600,0.79854,3132.1,3131.8,0.00341054]
[1642520762800,0.79854,3132.1,3131.6,0.00454739]
[1642520762801,0.07761862,3132.0,3131.6,0.00454739]
[1642520763047,0.87646889,3131.8,3131.3,1.60338656]
[1642520763244,1.72505,3131.7,3131.4,0.00568424]
[1642520763544,1.72505,3131.7,3131.3,0.7986068]
[1642520763745,2.52366,3131.7,3130.9,0.00852636]
[1642520763943,2.52366,3131.7,3131.4,0.00568424]
[1642520764144,2.24639512,3131.6,3130.9,0.00852636]
[1642520764547,2.54639512,3131.6,3130.8,0.00909478]
[1642520764746,2.69613,3131.6,3131.0,1.5972468]
[1642520764945,0.79874,3131.3,3130.7,0.0096632]
[1642520765146,0.79874,3131.3,3131.1,0.00738951]
[1642520765346,0.3,3131.3,3130.7,0.8083137]
[1642520765551,0.26589997,3132.2,3130.8,2.89514729]
[1642520765748,0.26589997,3132.2,3130.8,4.50156117]
[1642520765749,0.72589997,3132.2,3130.8,4.50156117]
[1642520765947,0.72589997,3132.2,3131.7,1.70368085]
[1642520766147,0.59819997,3132.2,3131.7,1.49194864]
[1642520766347,0.59819997,3132.2,3131.8,0.00341054]
[1642520766547,0.51842995,3132.2,3131.8,0.00341054]
[1642520766780,0.79837,3132.0,3131.8,0.00341054]
[1642520766980,0.3,3131.9,3131.8,0.00341054]
[1642520767180,0.3,3131.9,3131.2,0.00682108]
[1642520767181,8.53938071,3131.9,3131.2,0.00682108]
[1642520767479,10.13667071,3131.9,3131.0,0.00795793]
[1642520767681,2.0573,3131.8,3131.0,1.60512873]
[1642520767881,0.92636,3131.7,3131.0,1.5971708]
[1642520768082,0.92636,3131.7,3131.1,0.00738951]
[1642520768083,1.68636,3131.7,3131.1,0.00738951]
[1642520768480,1.59743,3131.6,3131.1,0.00738951]
[1642520768680,0.1277,3131.5,3130.8,0.00909478]
[1642520768880,0.79873,3131.4,3130.8,0.00909478]
[1642520769081,0.79873,3131.3,3130.8,0.00909478]
[1642520769281,1.22643,3131.3,3130.8,0.00909478]
[1642520769480,1.22643,3131.3,3130.8,1.60641688]
[1642520769681,1.22643,3131.3,3130.8,1.5973221]
[1642520769882,1.22643,3131.3,3130.9,0.00852636]
[1642520770283,2.82388,3131.3,3130.9,0.00852636]
[1642520770938,0.7988,3131.2,3130.9,0.00852636]
[1642520771138,0.1277,3131.1,3130.9,0.00852636]
[1642520771336,0.1277,3131.1,3130.4,0.01136847]
[1642520771337,0.79888,3131.0,3130.4,0.01136847]
[1642520771538,0.79888,3131.0,3130.3,0.0119369]
[1642520771539,0.12006483,3130.8,3130.3,0.0119369]
[1642520771737,0.09015066,3130.6,3130.3,0.0119369]
[1642520771936,0.46,3130.5,3130.1,0.01307374]
[1642520772739,0.1277,3130.9,3130.2,0.1277]
[1642520772740,0.46,3130.9,3130.2,0.1277]
[1642520772940,0.1277,3131.5,3130.2,0.1277]
[1642520773138,0.1277,3131.6,3130.3,0.0119369]
[1642520773342,0.1277,3131.6,3130.4,0.1277]
[1642520773538,2.98385,3131.7,3130.4,0.1277]
[1642520773739,2.98385,3131.7,3130.9,1.29675972]
[1642520773942,0.79859,3131.4,3130.6,0.1277]
[1642520774187,2.02529,3131.3,3131.0,0.00795793]
[1642520774387,2.02529,3131.3,3130.7,0.0096632]
[1642520774590,2.02529,3131.3,3130.6,0.01023163]
[1642520774788,1.89759,3131.3,3130.6,0.01023163]
[1642520775487,0.3,3131.3,3130.6,0.01023163]
[1642520775689,0.3,3131.3,3130.8,1.5972626]
[1642520775993,0.79878,3131.5,3130.9,4.43897182]
[1642520776190,3.8132,3131.8,3130.9,4.43897182]
[1642520776389,3.8132,3131.8,3131.0,3.00119831]
[1642520776588,3.8132,3131.8,3131.0,3.30119831]
[1642520776790,0.1277,3132.1,3131.1,1.60416141]
[1642520776791,0.79841,3132.0,3131.1,1.60416141]
[1642520777090,0.79841,3132.0,3131.0,3.29324038]
[1642520777091,0.79841,3132.0,3131.9,3.46063246]
[1642520777292,0.79841,3132.0,3131.9,1.3419693]
[1642520777489,0.79841,3132.0,3131.9,1.64481142]
[1642520777690,0.05842995,3132.2,3131.9,1.64481142]
[1642520778128,0.05842995,3132.2,3132.0,0.0022737]
[1642520778729,0.35842995,3132.2,3131.9,0.00284212]
[1642520779933,0.1277,3132.1,3131.9,0.00284212]
[1642520781138,0.18612995,3132.2,3131.9,0.00284212]
[1642520781334,0.48612995,3132.2,3131.9,0.00284212]
[1642520781982,7.65959742,3132.1,3131.2,0.1277]
[1642520782182,0.79875,3131.9,3131.2,0.1277]
[1642520782482,6.05,3131.5,3130.6,1.5974542]
[1642520782684,1.5877,3131.4,3130.1,1.1532]
[1642520782882,2.30664139,3131.3,3130.5,1.11025205]
[1642520783082,1.5877,3131.4,3130.5,1.11025205]
[1642520783083,0.5877,3131.2,3130.5,1.11025205]
[1642520783383,0.46,3131.1,3130.6,0.00397897]